[Event "World Senior chT-50 2019"]
[Site "Rhodes"]
[Date "2019.04.20"]
[Round "5.31"]
[White "Kozlovskaya, Valentina"]
[Black "Ungure, Liga"]
[Result "1/2-1/2"]
[ECO "E92"]
[WhiteElo "2161"]
[BlackElo "1930"]
[Annotator "NA"]
[PlyCount "122"]
[EventDate "2019.04.16"]
[EventType "team-tourn"]
[EventCountry "GRE"]
[SourceTitle "playchess.com"]
[Source "ChessBase"]
[SourceQuality "1"]
[WhiteTeam "Russia"]
[BlackTeam "Latvia"]
[WhiteTeamCountry "RUS"]
[BlackTeamCountry "LAT"]
[TimeControl "40/5400+30:1800+30"]

1. c4 {[%emt 0:00:00]} Nf6 {[%emt 0:00:00]} 2. Nc3 {[%emt 0:00:00]} g6 {[%emt 0:00:00]} 3. d4 {[%emt 0:00:00]} Bg7 {[%emt 0:00:00]} 4. e4 {[%emt 0:00:52]} d6 {[%emt 0:00:00]} 5. Be2 {[%emt 0:01:08]} O-O {[%emt 0:00:07]} 6. Be3 {[%emt 0:00:37]} e5 {[%emt 0:04:12]} 7. d5 {[%emt 0:01:53]} a5 {[%emt 0:02:59]} 8. h3 {[%emt 0:00:19]} Na6 {[%emt 0:02:12]} 9. Nf3 {[%emt 0:01:23]} Nc5 {[%emt 0:03:57]} 10. Nd2 {[%emt 0:00:58]} Nfd7 {[%emt 0:07:25]} 11. O-O {[%emt 0:04:54]} f5 {[%emt 0:08:53]} 12. exf5 {[%emt 0:00:06]} gxf5 {[%emt 0:03:46]} 13. f4 {[%emt 0:00:08]} Bh6 {[%emt 0:05:32]} 14. Qe1 {[%emt 0:11:20]} Bxf4 {[%emt 0:03:46]} 15. Bxf4 {[%emt 0:00:41]} exf4 {[%emt 0:00:02]} 16. Rxf4 {[%emt 0:00:26]} Ne5 {[%emt 0:02:20]} 17. Qg3+ {[%emt 0:10:26]} Kh8 {[%emt 0:03:05]} 18. Raf1 {[%emt 0:02:35]} Rg8 {[%emt 0:00:00]} 19. Qe3 {[%emt 0:05:11]} Qg5 {[%emt 0:02:11]} 20. R1f2 {[%emt 0:00:11]} Bd7 {[%emt 0:02:09]} 21. Nf1 {[%emt 0:03:42]} Rae8 {[%emt 0:07:12]} 22. Qd4 {[%emt 0:00:10]} Rg7 {[%emt 0:09:21]} 23. Kh1 {[%emt 0:02:52]} Ng6 {[%emt 0:06:34]} 24. R4f3 {[%emt 0:05:02]} f4 {[%emt 0:03:39]} 25. Bd3 {[%emt 0:15:45]} Ne5 {[%emt 0:06:08]} 26. Be2 {[%emt 0:10:33]} Nxf3 {[%emt 0:00:36]} 27. Bxf3 {[%emt 0:00:02]} Bxh3 {[%emt 0:01:36]} 28. Ne2 {[%emt 0:01:11]} Bg4 {[%emt 0:01:50]} 29. Bxg4 {[%emt 0:07:50]} Qxg4 {[%emt 0:00:15]} 30. Nxf4 {[%emt 0:01:32]} Qf5 {[%emt 0:07:52]} 31. Nh3 {[%emt 0:02:16]} Qe5 {[%emt 0:00:17]} 32. Qh4 {[%emt 0:01:18]} Reg8 {[%emt 0:01:00]} 33. Kg1 {[%emt 0:01:48]} Rg4 {[%emt 0:01:01]} 34. Qh6 {[%emt 0:00:32]} Qg7 {[%emt 0:00:15]} 35. Qxg7+ {[%emt 0:00:19]} R8xg7 {[%emt 0:00:44]} 36. b3 {[%emt 0:00:16]} Nd3 {[%emt 0:00:52]} 37. Re2 {[%emt 0:01:53]} Nf4 {[%emt 0:00:56]} 38. Nxf4 {[%emt 0:00:11]} Rxf4 {[%emt 0:00:04]} 39. Re8+ {[%emt 0:00:21]} Rg8 {[%emt 0:00:04]} 40. Re7 {[%emt 0:00:00]} Rg7 {[%emt 0:00:00]} 41. Re8+ {[%emt 0:00:02]} Rg8 {[%emt 0:01:27]} 42. Re7 {[%emt 0:00:00]} Rfg4 {[%emt 0:01:02]} 43. Ne3 {[%emt 0:03:07]} R4g7 {[%emt 0:03:35]} 44. Re4 {[%emt 0:02:52]} Rf8 {[%emt 0:00:00]} 45. Nc2 {[%emt 0:02:30]} Rgf7 {[%emt 0:01:56]} 46. Ne3 {[%emt 0:06:01]} Rf4 {[%emt 0:01:54]} 47. Re7 {[%emt 0:00:58]} R8f7 {[%emt 0:00:09]} 48. Re8+ {[%emt 0:03:02]} Kg7 {[%emt 0:02:01]} 49. a3 {[%emt 0:01:16]} Rd4 {[%emt 0:04:27]} 50. b4 {[%emt 0:01:21]} Rd3 {[%emt 0:00:41]} 51. c5 {[%emt 0:04:41]} Rxa3 {[%emt 0:01:50]} 52. cxd6 {[%emt 0:00:11]} axb4 {[%emt 0:02:41]} 53. dxc7 {[%emt 0:04:46]} Rxc7 {[%emt 0:00:19]} 54. d6 {[%emt 0:00:25]} Rd7 {[%emt 0:02:38]} 55. Re4 {[%emt 0:00:40]} Rxe3 {[%emt 0:10:23]} 56. Rxe3 {[%emt 0:00:02]} Rxd6 {[%emt 0:00:04]} 57. Re7+ {[%emt 0:00:25]} Kg6 {[%emt 0:00:23]} 58. Rxb7 {[%emt 0:00:02]} Rd4 {[%emt 0:00:16]} 59. Kf2 {[%emt 0:01:25]} h5 {[%emt 0:00:29]} 60. Rb5 {[%emt 0:02:12]} Rc4 {[%emt 0:00:49]} 61. Kg3 {[%emt 0:01:17]} Rd4 {[%emt 0:02:22]} 1/2-1/2

[Event "World Senior chT-50 2019"]
[Site "Rhodes"]
[Date "2019.04.20"]
[Round "5.32"]
[White "Harlinska, Sandra"]
[Black "Titorenko, Natalia I"]
[Result "0-1"]
[ECO "B30"]
[WhiteElo "1833"]
[BlackElo "2153"]
[Annotator "NA"]
[PlyCount "64"]
[EventDate "2019.04.16"]
[EventType "team-tourn"]
[EventCountry "GRE"]
[SourceTitle "playchess.com"]
[Source "ChessBase"]
[SourceQuality "1"]
[WhiteTeam "Latvia"]
[BlackTeam "Russia"]
[WhiteTeamCountry "LAT"]
[BlackTeamCountry "RUS"]
[TimeControl "40/5400+30:1800+30"]

1. e4 {[%emt 0:00:00]} c5 {[%emt 0:00:00]} 2. Nf3 {[%emt 0:00:00]} Nf6 {[%emt 0:00:00]} 3. Nc3 {[%emt 0:00:00]} Nc6 {[%emt 0:00:00]} 4. Bb5 {[%emt 0:00:37]} g6 {[%emt 0:05:05]} 5. e5 {[%emt 0:11:14]} Ng4 {[%emt 0:02:33]} 6. Bxc6 {[%emt 0:07:40]} dxc6 {[%emt 0:00:07]} 7. h3 {[%emt 0:00:05]} Nh6 {[%emt 0:00:12]} 8. d3 {[%emt 0:02:00]} Bg7 {[%emt 0:03:26]} 9. Ne4 {[%emt 0:12:12]} b6 {[%emt 0:00:18]} 10. Qe2 {[%emt 0:11:25]} Nf5 {[%emt 0:06:39]} 11. c3 {[%emt 0:03:34]} Ba6 {[%emt 0:04:07]} 12. Kd2 {[%emt 0:03:49]} Qd5 {[%emt 0:20:09]} 13. Kc2 {[%emt 0:00:48]} O-O-O {[%emt 0:04:07]} 14. Rd1 {[%emt 0:00:35]} c4 {[%emt 0:07:33]} 15. dxc4 {[%emt 0:14:06]} Bxc4 {[%emt 0:06:45]} 16. Rxd5 {[%emt 0:01:59]} Bxe2 {[%emt 0:00:02]} 17. Rxd8+ {[%emt 0:03:25]} Rxd8 {[%emt 0:00:01]} 18. Ned2 {[%emt 0:00:13]} h5 {[%emt 0:02:44]} 19. Ng5 {[%emt 0:09:15]} Nh4 {[%emt 0:07:07]} 20. g3 {[%emt 0:01:14]} Ng2 {[%emt 0:00:26]} 21. Nxf7 {[%emt 0:01:31]} Ne1+ {[%emt 0:06:43]} 22. Kb3 {[%emt 0:00:07]} Bd1+ {[%emt 0:01:54]} 23. Kc4 {[%emt 0:01:05]} Rd5 {[%emt 0:00:31]} 24. a4 {[%emt 0:01:04]} Rc5+ {[%emt 0:00:15]} 25. Kd4 {[%emt 0:01:14]} Nc2+ {[%emt 0:00:09]} 26. Ke4 {[%emt 0:01:07]} Nxa1 {[%emt 0:00:16]} 27. b4 {[%emt 0:00:24]} Rd5 {[%emt 0:02:56]} 28. c4 {[%emt 0:00:48]} Bc2+ {[%emt 0:01:59]} 29. Ke3 {[%emt 0:00:43]} Rd3+ {[%emt 0:01:02]} 30. Ke2 {[%emt 0:00:07]} Nb3 {[%emt 0:00:35]} 31. Nxb3 {[%emt 0:04:02]} Rxb3 {[%emt 0:00:09]} 32. Kd2 {[%emt 0:00:06]} Bf5 {[%emt 0:00:19]} 0-1

[Event "World Senior chT-50 2019"]
[Site "Rhodes"]
[Date "2019.04.20"]
[Round "5.33"]
[White "Mitrandzas, Athanasios"]
[Black "Zimmermann, Rolf"]
[Result "1/2-1/2"]
[ECO "A37"]
[WhiteElo "2055"]
[BlackElo "2086"]
[Annotator "NA"]
[PlyCount "79"]
[EventDate "2019.04.16"]
[EventType "team-tourn"]
[EventCountry "GRE"]
[SourceTitle "playchess.com"]
[Source "ChessBase"]
[SourceQuality "1"]
[WhiteTeam "Greece"]
[BlackTeam "Germany"]
[WhiteTeamCountry "GRE"]
[BlackTeamCountry "GER"]
[TimeControl "40/5400+30:1800+30"]

1. c4 {[%emt 0:01:14]} c5 {[%emt 0:00:00]} 2. g3 {[%emt 0:00:15]} g6 {[%emt 0:00:35]} 3. Bg2 {[%emt 0:00:14]} Bg7 {[%emt 0:00:02]} 4. Nc3 {[%emt 0:00:18]} Nc6 {[%emt 0:00:32]} 5. Nf3 {[%emt 0:00:13]} d6 {[%emt 0:04:55]} 6. O-O {[%emt 0:00:15]} e5 {[%emt 0:00:32]} 7. a3 {[%emt 0:00:14]} Nge7 {[%emt 0:00:25]} 8. Rb1 {[%emt 0:00:12]} O-O {[%emt 0:09:08]} 9. b4 {[%emt 0:00:10]} Be6 {[%emt 0:10:54]} 10. bxc5 {[%emt 0:06:26]} dxc5 {[%emt 0:00:54]} 11. Rxb7 {[%emt 0:00:15]} Bxc4 {[%emt 0:01:03]} 12. Qa4 {[%emt 0:00:28]} Be6 {[%emt 0:02:09]} 13. Ng5 {[%emt 0:04:15]} Bd7 {[%emt 0:08:37]} 14. Nge4 {[%emt 0:16:04]} Be8 {[%emt 0:03:08]} 15. Nxc5 {[%emt 0:12:18]} Na5 {[%emt 0:01:29]} 16. Rd7 {[%emt 0:01:23]} Qb6 {[%emt 0:10:15]} 17. Qe4 {[%emt 0:06:01]} Qxc5 {[%emt 0:01:12]} 18. Rxe7 {[%emt 0:00:25]} Qxe7 {[%emt 0:00:12]} 19. Qxa8 {[%emt 0:06:19]} Bc6 {[%emt 0:00:50]} 20. Bxc6 {[%emt 0:00:12]} Rxa8 {[%emt 0:00:22]} 21. Bxa8 {[%emt 0:00:04]} Nb3 {[%emt 0:01:01]} 22. Bd5 {[%emt 0:01:34]} Nxc1 {[%emt 0:00:31]} 23. Rxc1 {[%emt 0:00:09]} Qxa3 {[%emt 0:03:01]} 24. Rb1 {[%emt 0:00:10]} Bf8 {[%emt 0:00:26]} 25. Rb7 {[%emt 0:01:52]} Be7 {[%emt 0:00:02]} 26. Kg2 {[%emt 0:03:28]} Kg7 {[%emt 0:00:59]} 27. Bb3 {[%emt 0:00:40]} a5 {[%emt 0:02:15]} 28. Bc4 {[%emt 0:04:28]} Qc5 {[%emt 0:02:12]} 29. d3 {[%emt 0:03:52]} Qc6+ {[%emt 0:07:01]} 30. Bd5 {[%emt 0:00:12]} Qxc3 {[%emt 0:01:40]} 31. Rxe7 {[%emt 0:00:08]} Qc5 {[%emt 0:02:13]} 32. Rxf7+ {[%emt 0:00:11]} Kh8 {[%emt 0:00:40]} 33. e4 {[%emt 0:01:44]} a4 {[%emt 0:00:21]} 34. Rb7 {[%emt 0:00:25]} a3 {[%emt 0:00:20]} 35. g4 {[%emt 0:00:17]} h6 {[%emt 0:00:14]} 36. h3 {[%emt 0:00:38]} Qa5 {[%emt 0:01:04]} 37. Ba2 {[%emt 0:08:57]} Qa6 {[%emt 0:02:17]} 38. Rd7 {[%emt 0:05:38]} Qb6 {[%emt 0:01:01]} 39. Bc4 {[%emt 0:00:50]} g5 {[%emt 0:01:02]} 40. Rf7 {[%emt 0:00:00]} 1/2-1/2

[Event "World Senior chT-50 2019"]
[Site "Rhodes"]
[Date "2019.04.20"]
[Round "5.34"]
[White "Hoehn, Michael"]
[Black "Ilandzis, Spyridon"]
[Result "0-1"]
[ECO "A04"]
[WhiteElo "2040"]
[BlackElo "2021"]
[Annotator "NA"]
[PlyCount "122"]
[EventDate "2019.04.16"]
[EventType "team-tourn"]
[EventCountry "GRE"]
[SourceTitle "playchess.com"]
[Source "ChessBase"]
[SourceQuality "1"]
[WhiteTeam "Germany"]
[BlackTeam "Greece"]
[WhiteTeamCountry "GER"]
[BlackTeamCountry "GRE"]
[TimeControl "40/5400+30:1800+30"]

1. Nf3 {[%emt 0:00:00]} c5 {[%emt 0:00:01]} 2. b3 {[%emt 0:00:12]} d6 {[%emt 0:02:00]} 3. Bb2 {[%emt 0:00:28]} e5 {[%emt 0:00:23]} 4. d3 {[%emt 0:00:06]} g6 {[%emt 0:00:51]} 5. Nbd2 {[%emt 0:00:35]} Bg7 {[%emt 0:00:23]} 6. g3 {[%emt 0:01:33]} Ne7 {[%emt 0:01:09]} 7. Bg2 {[%emt 0:00:09]} O-O {[%emt 0:00:26]} 8. Qc1 {[%emt 0:06:21]} Nbc6 {[%emt 0:01:03]} 9. e3 {[%emt 0:00:12]} d5 {[%emt 0:05:52]} 10. O-O {[%emt 0:02:40]} f5 {[%emt 0:04:42]} 11. e4 {[%emt 0:09:55]} fxe4 {[%emt 0:02:15]} 12. dxe4 {[%emt 0:00:11]} d4 {[%emt 0:00:18]} 13. Ne1 {[%emt 0:11:04]} Bg4 {[%emt 0:07:45]} 14. f3 {[%emt 0:02:49]} Be6 {[%emt 0:00:25]} 15. Nd3 {[%emt 0:03:13]} b6 {[%emt 0:06:59]} 16. Rf2 {[%emt 0:09:03]} Bh6 {[%emt 0:01:57]} 17. f4 {[%emt 0:01:44]} Kg7 {[%emt 0:05:14]} 18. Qf1 {[%emt 0:14:48]} Ng8 {[%emt 0:06:23]} 19. Bc1 {[%emt 0:03:31]} Qc7 {[%emt 0:15:53]} 20. Nf3 {[%emt 0:03:15]} exf4 {[%emt 0:02:44]} 21. Bxf4 {[%emt 0:00:23]} Qe7 {[%emt 0:02:33]} 22. Nfe5 {[%emt 0:02:52]} Na5 {[%emt 0:09:45]} 23. Bh3 {[%emt 0:03:07]} g5 {[%emt 0:06:39]} 24. Bxe6 {[%emt 0:02:28]} Qxe6 {[%emt 0:01:35]} 25. Bd2 {[%emt 0:00:50]} Rxf2 {[%emt 0:02:02]} 26. Qxf2 {[%emt 0:00:16]} Rf8 {[%emt 0:00:16]} 27. Qe2 {[%emt 0:00:31]} Nc6 {[%emt 0:03:34]} 28. Ng4 {[%emt 0:01:00]} Kh8 {[%emt 0:03:27]} 29. Nxh6 {[%emt 0:02:15]} Qxh6 {[%emt 0:01:35]} 30. h4 {[%emt 0:06:06]} Qg7 {[%emt 0:01:00]} 31. Bxg5 {[%emt 0:00:17]} h6 {[%emt 0:00:05]} 32. Qh5 {[%emt 0:04:54]} Ne5 {[%emt 0:00:57]} 33. Nf4 {[%emt 0:03:01]} d3 {[%emt 0:00:47]} 34. Kg2 {[%emt 0:05:21]} dxc2 {[%emt 0:02:42]} 35. Ne6 {[%emt 0:01:04]} Qf7 {[%emt 0:00:34]} 36. Qxf7 {[%emt 0:00:15]} Rxf7 {[%emt 0:00:01]} 37. Bf4 {[%emt 0:00:15]} Nd3 {[%emt 0:00:15]} 38. Be3 {[%emt 0:00:43]} Re7 {[%emt 0:00:59]} 39. Nf4 {[%emt 0:00:04]} Rxe4 {[%emt 0:02:01]} 40. Nxd3 {[%emt 0:00:00]} Rxe3 {[%emt 0:00:00]} 41. Ne1 {[%emt 0:01:52]} Nf6 {[%emt 0:01:04]} 42. Rc1 {[%emt 0:02:58]} Ne4 {[%emt 0:01:36]} 43. Nxc2 {[%emt 0:04:28]} Rxg3+ {[%emt 0:00:26]} 44. Kh2 {[%emt 0:00:33]} Rc3 {[%emt 0:00:46]} 45. Kg2 {[%emt 0:00:43]} Kg7 {[%emt 0:05:18]} 46. Kh2 {[%emt 0:00:39]} Kh7 {[%emt 0:00:41]} 47. Kg2 {[%emt 0:00:05]} Kg6 {[%emt 0:00:10]} 48. h5+ {[%emt 0:00:54]} Kxh5 {[%emt 0:02:53]} 49. Rh1+ {[%emt 0:00:04]} Kg4 {[%emt 0:00:22]} 50. Ne1 {[%emt 0:00:39]} Rg3+ {[%emt 0:01:06]} 51. Kf1 {[%emt 0:00:01]} h5 {[%emt 0:00:38]} 52. Ng2 {[%emt 0:00:29]} Nd2+ {[%emt 0:01:40]} 53. Kf2 {[%emt 0:00:16]} Ne4+ {[%emt 0:01:21]} 54. Kf1 {[%emt 0:00:00]} Nc3 {[%emt 0:03:17]} 55. Rh4+ {[%emt 0:00:13]} Kg5 {[%emt 0:00:05]} 56. Rc4 {[%emt 0:00:29]} Nd5 {[%emt 0:02:16]} 57. Re4 {[%emt 0:00:37]} Kf6 {[%emt 0:01:27]} 58. Kf2 {[%emt 0:00:48]} Rc3 {[%emt 0:00:17]} 59. Re2 {[%emt 0:00:17]} Nb4 {[%emt 0:00:25]} 60. Ne3 {[%emt 0:01:07]} Kg5 {[%emt 0:01:01]} 61. Ke1 {[%emt 0:02:07]} Rxe3 {[%emt 0:00:22]} 0-1

[Event "World Senior chT-50 2019"]
[Site "Rhodes"]
[Date "2019.04.20"]
[Round "5.35"]
[White "Hrisanthopoulos, Dimitrios"]
[Black "Wolff, Peter"]
[Result "1/2-1/2"]
[ECO "B19"]
[WhiteElo "1995"]
[BlackElo "1893"]
[Annotator "NA"]
[PlyCount "81"]
[EventDate "2019.04.16"]
[EventType "team-tourn"]
[EventCountry "GRE"]
[SourceTitle "playchess.com"]
[Source "ChessBase"]
[SourceQuality "1"]
[WhiteTeam "Greece"]
[BlackTeam "Germany"]
[WhiteTeamCountry "GRE"]
[BlackTeamCountry "GER"]
[TimeControl "40/5400+30:1800+30"]

1. e4 {[%emt 0:00:00]} c6 {[%emt 0:00:00]} 2. d4 {[%emt 0:00:00]} d5 {[%emt 0:00:00]} 3. Nd2 {[%emt 0:00:07]} dxe4 {[%emt 0:00:00]} 4. Nxe4 {[%emt 0:00:09]} Bf5 {[%emt 0:00:00]} 5. Ng3 {[%emt 0:00:18]} Bg6 {[%emt 0:00:02]} 6. h4 {[%emt 0:00:22]} h6 {[%emt 0:00:07]} 7. Nf3 {[%emt 0:00:57]} Nd7 {[%emt 0:00:07]} 8. h5 {[%emt 0:00:23]} Bh7 {[%emt 0:00:07]} 9. Bd3 {[%emt 0:00:19]} Bxd3 {[%emt 0:00:08]} 10. Qxd3 {[%emt 0:00:08]} e6 {[%emt 0:00:10]} 11. Bd2 {[%emt 0:05:39]} Ngf6 {[%emt 0:00:16]} 12. O-O-O {[%emt 0:00:17]} Be7 {[%emt 0:00:23]} 13. Kb1 {[%emt 0:00:49]} O-O {[%emt 0:00:30]} 14. Ne4 {[%emt 0:01:21]} Nxe4 {[%emt 0:00:09]} 15. Qxe4 {[%emt 0:00:08]} Nf6 {[%emt 0:00:09]} 16. Qe2 {[%emt 0:00:28]} Qd5 {[%emt 0:00:17]} 17. Be3 {[%emt 0:01:20]} Qe4 {[%emt 0:08:27]} 18. Ne5 {[%emt 0:03:06]} Nd5 {[%emt 0:05:00]} 19. Rhe1 {[%emt 0:16:39]} Nxe3 {[%emt 0:08:03]} 20. Qxe3 {[%emt 0:03:21]} Qxe3 {[%emt 0:00:52]} 21. Rxe3 {[%emt 0:00:21]} Rad8 {[%emt 0:01:34]} 22. Rb3 {[%emt 0:00:30]} Bf6 {[%emt 0:03:52]} 23. Rbd3 {[%emt 0:09:05]} Rd6 {[%emt 0:05:52]} 24. Ng4 {[%emt 0:03:56]} Rfd8 {[%emt 0:03:21]} 25. Nxf6+ {[%emt 0:06:27]} gxf6 {[%emt 0:00:39]} 26. f4 {[%emt 0:07:30]} f5 {[%emt 0:30:15]} 27. c3 {[%emt 0:05:36]} c5 {[%emt 0:03:33]} 28. Kc2 {[%emt 0:00:37]} cxd4 {[%emt 0:00:19]} 29. Rxd4 {[%emt 0:01:16]} Rxd4 {[%emt 0:04:41]} 30. cxd4 {[%emt 0:05:16]} Kf8 {[%emt 0:01:36]} 31. Kc3 {[%emt 0:01:44]} Ke7 {[%emt 0:00:41]} 32. Re1 {[%emt 0:01:47]} Rg8 {[%emt 0:04:50]} 33. Rg1 {[%emt 0:07:09]} Rg3+ {[%emt 0:03:29]} 34. Kc4 {[%emt 0:00:44]} Kd6 {[%emt 0:00:46]} 35. a4 {[%emt 0:00:40]} a6 {[%emt 0:07:46]} 36. a5 {[%emt 0:01:32]} Kc6 {[%emt 0:03:30]} 37. b4 {[%emt 0:03:47]} f6 {[%emt 0:01:57]} 38. Re1 {[%emt 0:01:04]} Kd6 {[%emt 0:00:56]} 39. Rg1 {[%emt 0:01:36]} Kc6 {[%emt 0:02:08]} 40. Re1 {[%emt 0:00:00]} Kd6 {[%emt 0:00:00]} 41. Rg1 {[%emt 0:01:35]} 1/2-1/2

[Event "World Senior chT-50 2019"]
[Site "Rhodes"]
[Date "2019.04.20"]
[Round "5.36"]
[White "Theuer, Carsten"]
[Black "Papadimitriou, Loukas"]
[Result "0-1"]
[ECO "C47"]
[WhiteElo "1868"]
[BlackElo "1943"]
[Annotator "NA"]
[PlyCount "86"]
[EventDate "2019.04.16"]
[EventType "team-tourn"]
[EventCountry "GRE"]
[SourceTitle "playchess.com"]
[Source "ChessBase"]
[SourceQuality "1"]
[WhiteTeam "Germany"]
[BlackTeam "Greece"]
[WhiteTeamCountry "GER"]
[BlackTeamCountry "GRE"]
[TimeControl "40/5400+30:1800+30"]

1. e4 {[%emt 0:00:00]} e5 {[%emt 0:00:00]} 2. Nf3 {[%emt 0:00:00]} Nf6 {[%emt 0:00:00]} 3. Nc3 {[%emt 0:00:10]} Nc6 {[%emt 0:00:00]} 4. d3 {[%emt 0:00:27]} Bc5 {[%emt 0:01:37]} 5. Bg5 {[%emt 0:01:13]} h6 {[%emt 0:00:27]} 6. Bh4 {[%emt 0:00:12]} d6 {[%emt 0:00:22]} 7. h3 {[%emt 0:01:21]} g5 {[%emt 0:02:25]} 8. Bg3 {[%emt 0:00:27]} a6 {[%emt 0:03:10]} 9. Be2 {[%emt 0:01:45]} Be6 {[%emt 0:01:11]} 10. a3 {[%emt 0:01:24]} Ba7 {[%emt 0:00:50]} 11. Qd2 {[%emt 0:04:16]} Qd7 {[%emt 0:05:58]} 12. Na2 {[%emt 0:06:37]} O-O-O {[%emt 0:03:53]} 13. c4 {[%emt 0:00:42]} Nh5 {[%emt 0:11:57]} 14. Nc3 {[%emt 0:15:36]} Nf4 {[%emt 0:07:33]} 15. Bxf4 {[%emt 0:08:51]} gxf4 {[%emt 0:00:12]} 16. Bf1 {[%emt 0:00:11]} Kb8 {[%emt 0:06:05]} 17. O-O-O {[%emt 0:08:38]} Rhg8 {[%emt 0:02:40]} 18. Kb1 {[%emt 0:03:40]} f6 {[%emt 0:02:06]} 19. Ne1 {[%emt 0:06:39]} Nd4 {[%emt 0:01:45]} 20. Nf3 {[%emt 0:03:57]} c6 {[%emt 0:06:54]} 21. Nxd4 {[%emt 0:05:59]} Bxd4 {[%emt 0:00:18]} 22. f3 {[%emt 0:02:36]} Qc7 {[%emt 0:01:38]} 23. Ne2 {[%emt 0:00:30]} Bb6 {[%emt 0:04:19]} 24. Qc2 {[%emt 0:00:43]} Qf7 {[%emt 0:00:55]} 25. b3 {[%emt 0:03:00]} d5 {[%emt 0:00:59]} 26. Nc3 {[%emt 0:03:09]} dxc4 {[%emt 0:02:24]} 27. bxc4 {[%emt 0:03:09]} Ba5 {[%emt 0:01:39]} 28. Kb2 {[%emt 0:03:16]} Qe7 {[%emt 0:02:04]} 29. Qa4 {[%emt 0:02:04]} Qc5 {[%emt 0:00:38]} 30. Rb1 {[%emt 0:03:15]} Rd7 {[%emt 0:07:49]} 31. Qb3 {[%emt 0:02:13]} Qd4 {[%emt 0:02:06]} 32. a4 {[%emt 0:01:04]} Rdg7 {[%emt 0:03:25]} 33. Rc1 {[%emt 0:00:44]} h5 {[%emt 0:00:57]} 34. Rc2 {[%emt 0:00:42]} h4 {[%emt 0:00:07]} 35. Kb1 {[%emt 0:00:31]} Ka7 {[%emt 0:01:10]} 36. Ne2 {[%emt 0:02:02]} Qe3 {[%emt 0:01:17]} 37. Nc3 {[%emt 0:00:20]} Rb8 {[%emt 0:00:37]} 38. Rb2 {[%emt 0:03:08]} Qe1+ {[%emt 0:01:04]} 39. Nd1 {[%emt 0:00:42]} b5 {[%emt 0:02:55]} 40. axb5 {[%emt 0:00:00]} Rxb5 {[%emt 0:00:00]} 41. Qc2 {[%emt 0:01:37]} Rxb2+ {[%emt 0:00:51]} 42. Kxb2 {[%emt 0:03:16]} Rb7+ {[%emt 0:00:12]} 43. Ka2 {[%emt 0:02:03]} Bb6 {[%emt 0:00:57]} 0-1

[Event "World Senior chT-50 2019"]
[Site "Rhodes"]
[Date "2019.04.20"]
[Round "5.37"]
[White "Braso, Jorge"]
[Black "Delaney, John"]
[Result "0-1"]
[ECO "B33"]
[WhiteElo "2098"]
[BlackElo "2156"]
[Annotator "NA"]
[PlyCount "138"]
[EventDate "2019.04.16"]
[EventType "team-tourn"]
[EventCountry "GRE"]
[SourceTitle "playchess.com"]
[Source "ChessBase"]
[SourceQuality "1"]
[WhiteTeam "Uruguay"]
[BlackTeam "Ireland"]
[WhiteTeamCountry "URU"]
[BlackTeamCountry "IRL"]
[TimeControl "40/5400+30:1800+30"]

1. e4 {[%emt 0:00:00]} c5 {[%emt 0:00:00]} 2. Nf3 {[%emt 0:00:00]} Nc6 {[%emt 0:00:00]} 3. d4 {[%emt 0:00:00]} cxd4 {[%emt 0:00:04]} 4. Nxd4 {[%emt 0:00:00]} Nf6 {[%emt 0:00:10]} 5. Nc3 {[%emt 0:00:04]} e5 {[%emt 0:00:09]} 6. Ndb5 {[%emt 0:00:28]} h6 {[%emt 0:00:12]} 7. Nd6+ {[%emt 0:05:48]} Bxd6 {[%emt 0:00:11]} 8. Qxd6 {[%emt 0:00:02]} Qe7 {[%emt 0:00:11]} 9. Qxe7+ {[%emt 0:00:33]} Kxe7 {[%emt 0:00:14]} 10. Be3 {[%emt 0:03:06]} d6 {[%emt 0:00:25]} 11. O-O-O {[%emt 0:01:06]} Be6 {[%emt 0:00:21]} 12. f3 {[%emt 0:00:25]} a6 {[%emt 0:00:42]} 13. Bb6 {[%emt 0:06:16]} Rac8 {[%emt 0:01:20]} 14. a3 {[%emt 0:01:07]} Nb8 {[%emt 0:01:32]} 15. Nd5+ {[%emt 0:02:36]} Nxd5 {[%emt 0:02:23]} 16. exd5 {[%emt 0:00:12]} Bf5 {[%emt 0:01:29]} 17. Bd3 {[%emt 0:00:07]} Bxd3 {[%emt 0:01:57]} 18. Rxd3 {[%emt 0:00:03]} Nd7 {[%emt 0:02:17]} 19. Bf2 {[%emt 0:05:14]} b5 {[%emt 0:03:26]} 20. Re1 {[%emt 0:03:51]} g5 {[%emt 0:06:56]} 21. Kd2 {[%emt 0:06:14]} Rc7 {[%emt 0:02:19]} 22. c3 {[%emt 0:01:06]} f5 {[%emt 0:00:42]} 23. g3 {[%emt 0:06:04]} Rg8 {[%emt 0:03:56]} 24. g4 {[%emt 0:02:09]} Rf8 {[%emt 0:03:52]} 25. h3 {[%emt 0:04:21]} Kf6 {[%emt 0:11:16]} 26. h4 {[%emt 0:04:41]} fxg4 {[%emt 0:05:58]} 27. fxg4 {[%emt 0:03:32]} Kg6 {[%emt 0:01:41]} 28. Ke2 {[%emt 0:07:16]} Rf4 {[%emt 0:03:16]} 29. hxg5 {[%emt 0:01:59]} hxg5 {[%emt 0:00:23]} 30. Rh3 {[%emt 0:12:20]} Nf6 {[%emt 0:04:09]} 31. Bb6 {[%emt 0:02:00]} Rcc4 {[%emt 0:02:08]} 32. Reh1 {[%emt 0:01:51]} Rxg4 {[%emt 0:04:42]} 33. Bd8 {[%emt 0:05:42]} Nxd5 {[%emt 0:12:14]} 34. Rh6+ {[%emt 0:00:27]} Kf5 {[%emt 0:00:19]} 35. Rxd6 {[%emt 0:00:35]} Rg2+ {[%emt 0:01:16]} 36. Kd1 {[%emt 0:05:14]} Ne3+ {[%emt 0:07:17]} 37. Kc1 {[%emt 0:00:26]} Rf4 {[%emt 0:00:36]} 38. Re1 {[%emt 0:05:05]} Rc2+ {[%emt 0:01:58]} 39. Kb1 {[%emt 0:00:17]} Rxb2+ {[%emt 0:00:17]} 40. Kc1 {[%emt 0:00:00]} Rc2+ {[%emt 0:00:00]} 41. Kb1 {[%emt 0:01:33]} Rxc3 {[%emt 0:01:58]} 42. Rf6+ {[%emt 0:00:34]} Ke4 {[%emt 0:00:49]} 43. Rxa6 {[%emt 0:00:07]} g4 {[%emt 0:03:34]} 44. Kb2 {[%emt 0:05:16]} Rd3 {[%emt 0:01:20]} 45. Bh4 {[%emt 0:00:06]} Kf3 {[%emt 0:02:56]} 46. Rg1 {[%emt 0:09:56]} Rd1 {[%emt 0:13:58]} 47. Rg3+ {[%emt 0:01:29]} Ke4 {[%emt 0:00:23]} 48. a4 {[%emt 0:04:04]} Nf5 {[%emt 0:12:33]} 49. Rb3 {[%emt 0:00:50]} bxa4 {[%emt 0:01:41]} 50. Rxa4+ {[%emt 0:00:08]} Rd4 {[%emt 0:00:31]} 51. Rxd4+ {[%emt 0:00:08]} Nxd4 {[%emt 0:00:24]} 52. Rb8 {[%emt 0:00:26]} Nf5 {[%emt 0:02:22]} 53. Rb4+ {[%emt 0:02:00]} Kf3 {[%emt 0:00:00]} 54. Rb3+ {[%emt 0:00:27]} Kg2 {[%emt 0:00:00]} 55. Bf6 {[%emt 0:00:30]} Nd6 {[%emt 0:00:54]} 56. Bh4 {[%emt 0:02:52]} Rf3 {[%emt 0:00:53]} 57. Rb8 {[%emt 0:00:19]} Rh3 {[%emt 0:01:04]} 58. Be7 {[%emt 0:01:08]} Nc4+ {[%emt 0:00:21]} 59. Kc1 {[%emt 0:00:22]} g3 {[%emt 0:00:35]} 60. Rc8 {[%emt 0:00:05]} Ne3 {[%emt 0:01:33]} 61. Kd2 {[%emt 0:03:29]} Kf3 {[%emt 0:01:43]} 62. Rf8+ {[%emt 0:03:01]} Ke4 {[%emt 0:00:10]} 63. Bc5 {[%emt 0:00:52]} Rh2+ {[%emt 0:00:38]} 64. Ke1 {[%emt 0:00:15]} Rc2 {[%emt 0:00:52]} 65. Bb6 {[%emt 0:03:11]} Rb2 {[%emt 0:00:15]} 66. Ba7 {[%emt 0:00:54]} Ra2 {[%emt 0:00:16]} 67. Bb6 {[%emt 0:00:12]} Ng2+ {[%emt 0:00:18]} 68. Kf1 {[%emt 0:00:57]} Nf4 {[%emt 0:00:08]} 69. Rc8 {[%emt 0:04:22]} Kd5 {[%emt 0:00:16]} 0-1